[Event "Live Chess"]
[Site "Chess.com"]
[Date "2024.06.02"]
[Round "-"]
[White "Grace6363"]
[Black "dl_chess"]
[Result "0-1"]
[WhiteElo "1129"]
[BlackElo "1198"]
[TimeControl "300"]
[EndTime "7:26:46 PDT"]
[Termination "dl_chess won by resignation"]

1. d4 {[%clk 0:04:52.7]} 1... Nf6 {[%clk 0:04:58]} 2. c4 {[%clk 0:04:25]} 2...
g6 {[%clk 0:04:56.5]} 3. Bg5 {[%clk 0:04:24]} 3... Bg7 {[%clk 0:04:54]} 4. Bxf6
{[%clk 0:04:23.3]} 4... Bxf6 {[%clk 0:04:52.4]} 5. Nf3 {[%clk 0:04:23.1]} 5...
d6 {[%clk 0:04:49.4]} 6. e4 {[%clk 0:04:22.4]} 6... Bg4 {[%clk 0:04:46.6]} 7. d5
{[%clk 0:04:18.3]} 7... O-O {[%clk 0:04:44.7]} 8. Nc3 {[%clk 0:04:15]} 8... c6
{[%clk 0:04:35.2]} 9. Be2 {[%clk 0:04:14.4]} 9... Qa5 {[%clk 0:04:24.9]} 10. O-O
{[%clk 0:04:11.4]} 10... Bxc3 {[%clk 0:04:14.1]} 11. bxc3 {[%clk 0:04:10.5]}
11... Qxc3 {[%clk 0:04:12.9]} 12. Qd2 {[%clk 0:04:05.7]} 12... Qxd2 {[%clk
0:04:10.8]} 13. Nxd2 {[%clk 0:04:04.8]} 0-1

[Event "Live Chess"]
[Site "Chess.com"]
[Date "2024.06.02"]
[Round "-"]
[White "Frankie_Badacsonyi"]
[Black "DJ_Lambton"]
[Result "1-0"]
[WhiteElo "2391"]
[BlackElo "1820"]
[TimeControl "300"]
[EndTime "7:26:47 PDT"]
[Termination "Frankie_Badacsonyi won by resignation"]

1. c4 {[%clk 0:04:57.7]} 1... c6 {[%clk 0:04:59]} 2. d4 {[%clk 0:04:55.1]} 2...
d5 {[%clk 0:04:58.4]} 3. cxd5 {[%clk 0:04:54.6]} 3... cxd5 {[%clk 0:04:57.8]} 4.
Bf4 {[%clk 0:04:53.7]} 4... Nf6 {[%clk 0:04:57.3]} 5. e3 {[%clk 0:04:52.7]} 5...
Bf5 {[%clk 0:04:56.5]} 6. Nc3 {[%clk 0:04:51.7]} 6... a6 {[%clk 0:04:54.1]} 7.
Nf3 {[%clk 0:04:49.4]} 7... e6 {[%clk 0:04:52.2]} 8. Qb3 {[%clk 0:04:46]} 8...
b5 {[%clk 0:04:41.4]} 9. Ne5 {[%clk 0:04:31.7]} 9... Nbd7 {[%clk 0:04:37.7]} 10.
Be2 {[%clk 0:04:09.6]} 10... Be7 {[%clk 0:04:35.8]} 11. Nc6 {[%clk 0:04:05.6]}
11... Qb6 {[%clk 0:04:21.2]} 12. Nxe7 {[%clk 0:04:04.3]} 12... Kxe7 {[%clk
0:04:21.1]} 13. O-O {[%clk 0:04:01.7]} 13... Rhc8 {[%clk 0:04:18.3]} 14. Rac1
{[%clk 0:03:59.4]} 14... Kf8 {[%clk 0:04:16.8]} 15. h3 {[%clk 0:03:46.9]} 15...
Rc6 {[%clk 0:03:45.6]} 16. a3 {[%clk 0:03:19.1]} 16... Rac8 {[%clk 0:03:43.2]}
17. Na2 {[%clk 0:03:18.7]} 17... a5 {[%clk 0:03:40.1]} 18. Qxb5 {[%clk 0:03:11]}
18... Qxb5 {[%clk 0:03:36]} 19. Bxb5 {[%clk 0:03:10.9]} 19... Rc2 {[%clk
0:03:30.2]} 20. Bd6+ {[%clk 0:03:04.7]} 20... Kg8 {[%clk 0:03:20.2]} 21. Rxc2
{[%clk 0:03:03.7]} 21... Rxc2 {[%clk 0:03:18.1]} 22. Rc1 {[%clk 0:03:00.4]}
22... h6 {[%clk 0:03:14.1]} 23. Rxc2 {[%clk 0:02:58.6]} 23... Bxc2 {[%clk
0:03:13.6]} 24. Bc7 {[%clk 0:02:55.2]} 24... a4 {[%clk 0:03:10.6]} 25. Nc3
{[%clk 0:02:54.2]} 25... Nf8 {[%clk 0:03:07.4]} 26. Bxa4 {[%clk 0:02:52.2]}
26... Bxa4 {[%clk 0:03:06.6]} 27. Nxa4 {[%clk 0:02:52]} 27... Ne4 {[%clk
0:03:01.5]} 28. b4 {[%clk 0:02:43.5]} 28... Ng6 {[%clk 0:03:00.6]} 29. b5 {[%clk
0:02:42.1]} 29... Kf8 {[%clk 0:03:00]} 30. b6 {[%clk 0:02:41.1]} 30... Ne7
{[%clk 0:02:56.7]} 31. b7 {[%clk 0:02:39]} 31... Nc6 {[%clk 0:02:56]} 32. b8=Q+
{[%clk 0:02:37.3]} 32... Nxb8 {[%clk 0:02:54.9]} 33. Bxb8 {[%clk 0:02:37.2]}
33... Ke7 {[%clk 0:02:53.9]} 34. Nc5 {[%clk 0:02:35.7]} 34... Kd8 {[%clk
0:02:52]} 35. Nxe4 {[%clk 0:02:34]} 35... dxe4 {[%clk 0:02:51.2]} 36. Bd6 {[%clk
0:02:32.5]} 36... Kd7 {[%clk 0:02:48.9]} 37. Bb4 {[%clk 0:02:32.4]} 37... Kc6
{[%clk 0:02:48.1]} 38. a4 {[%clk 0:02:31.5]} 38... Kb6 {[%clk 0:02:46.7]} 39.
a5+ {[%clk 0:02:30.9]} 39... Kb5 {[%clk 0:02:44.8]} 40. Kf1 {[%clk 0:02:30.4]}
40... g6 {[%clk 0:02:42.8]} 41. Ke2 {[%clk 0:02:29]} 41... h5 {[%clk 0:02:41.7]}
42. Kd2 {[%clk 0:02:27.7]} 42... f5 {[%clk 0:02:41.2]} 43. h4 {[%clk 0:02:24.5]}
43... Ka6 {[%clk 0:02:36.2]} 44. Kc3 {[%clk 0:02:23]} 44... Kb5 {[%clk
0:02:35.4]} 45. g3 {[%clk 0:02:21.7]} 1-0

[Event "Live Chess"]
[Site "Chess.com"]
[Date "2024.06.02"]
[Round "-"]
[White "DoctorMantisTobogganMD"]
[Black "Queensandpawns"]
[Result "1-0"]
[WhiteElo "2236"]
[BlackElo "2277"]
[TimeControl "300"]
[EndTime "7:27:28 PDT"]
[Termination "DoctorMantisTobogganMD won by resignation"]

1. e4 {[%clk 0:04:59.4]} 1... d5 {[%clk 0:04:57.5]} 2. exd5 {[%clk 0:04:57.4]}
2... c6 {[%clk 0:04:57.4]} 3. d4 {[%clk 0:04:54.2]} 3... Nf6 {[%clk 0:04:56]} 4.
Nf3 {[%clk 0:04:52.4]} 4... Bg4 {[%clk 0:04:54.2]} 5. h3 {[%clk 0:04:51.1]} 5...
Bh5 {[%clk 0:04:52.6]} 6. g4 {[%clk 0:04:50.4]} 6... Bg6 {[%clk 0:04:51.5]} 7.
Ne5 {[%clk 0:04:48.9]} 7... Qxd5 {[%clk 0:04:49.6]} 8. Rg1 {[%clk 0:04:40.9]}
8... Qe4+ {[%clk 0:04:48.5]} 9. Be3 {[%clk 0:04:36.1]} 9... Qxc2 {[%clk
0:04:48.4]} 10. Nxg6 {[%clk 0:04:32.3]} 10... Qxg6 {[%clk 0:04:47.2]} 11. Bd3
{[%clk 0:04:29.4]} 11... Ne4 {[%clk 0:04:44.8]} 12. f3 {[%clk 0:04:26.2]} 1-0

[Event "Live Chess"]
[Site "Chess.com"]
[Date "2024.06.02"]
[Round "-"]
[White "CarmelJane"]
[Black "FlyingChessKestrel13"]
[Result "1/2-1/2"]
[WhiteElo "2011"]
[BlackElo "2066"]
[TimeControl "300"]
[EndTime "7:27:30 PDT"]
[Termination "Game drawn by repetition"]

1. Nf3 {[%clk 0:04:57.9]} 1... d6 {[%clk 0:04:56.9]} 2. b3 {[%clk 0:04:56.2]}
2... Nf6 {[%clk 0:04:56.6]} 3. Bb2 {[%clk 0:04:56]} 3... g6 {[%clk 0:04:56.5]}
4. g3 {[%clk 0:04:54.1]} 4... Bg7 {[%clk 0:04:55.7]} 5. Bg2 {[%clk 0:04:54]}
5... O-O {[%clk 0:04:55]} 6. O-O {[%clk 0:04:53.7]} 6... Nbd7 {[%clk 0:04:53.5]}
7. c4 {[%clk 0:04:51.6]} 7... e5 {[%clk 0:04:52.8]} 8. d3 {[%clk 0:04:48.9]}
8... Re8 {[%clk 0:04:50.6]} 9. Nbd2 {[%clk 0:04:48.1]} 9... Nf8 {[%clk
0:04:49.9]} 10. Rc1 {[%clk 0:04:44.7]} 10... c6 {[%clk 0:04:49.4]} 11. e3 {[%clk
0:04:34.6]} 11... Bg4 {[%clk 0:04:46.9]} 12. h3 {[%clk 0:04:33.2]} 12... Be6
{[%clk 0:04:45.7]} 13. a3 {[%clk 0:04:31.7]} 13... Qd7 {[%clk 0:04:44.8]} 14.
Ng5 {[%clk 0:04:30.3]} 14... h6 {[%clk 0:04:41.9]} 15. Nxe6 {[%clk 0:04:29.5]}
15... Nxe6 {[%clk 0:04:41.8]} 16. Ne4 {[%clk 0:04:25.7]} 16... Nxe4 {[%clk
0:04:40.5]} 17. Bxe4 {[%clk 0:04:25]} 17... f5 {[%clk 0:04:39.2]} 18. Bg2 {[%clk
0:04:23.8]} 18... f4 {[%clk 0:04:38.5]} 19. exf4 {[%clk 0:04:20.9]} 19... exf4
{[%clk 0:04:37.7]} 20. Bxg7 {[%clk 0:04:19.9]} 20... Kxg7 {[%clk 0:04:35.8]} 21.
d4 {[%clk 0:04:10.5]} 21... Qf7 {[%clk 0:04:33.4]} 22. d5 {[%clk 0:04:08.4]}
22... cxd5 {[%clk 0:04:32.1]} 23. Bxd5 {[%clk 0:04:06.9]} 23... Qf5 {[%clk
0:04:28.1]} 24. g4 {[%clk 0:03:39.2]} 24... Qg5 {[%clk 0:04:23.9]} 25. Bxb7
{[%clk 0:03:07.6]} 25... Rab8 {[%clk 0:04:04.2]} 26. Bc6 {[%clk 0:03:05.5]}
26... Rf8 {[%clk 0:03:59.9]} 27. Bd5 {[%clk 0:03:04]} 27... Rxb3 {[%clk
0:03:52.2]} 28. Bxe6 {[%clk 0:02:53]} 28... Rxh3 {[%clk 0:03:50.2]} 29. Qd4+
{[%clk 0:02:45.4]} 29... Kh7 {[%clk 0:03:45.1]} 30. Qxa7+ {[%clk 0:02:31.6]}
30... Kh8 {[%clk 0:03:43.6]} 31. Qd4+ {[%clk 0:02:30.8]} 31... Kh7 {[%clk
0:03:42.9]} 32. Qxd6 {[%clk 0:02:29.7]} 32... Qh4 {[%clk 0:03:33.5]} 33. Qd7+
{[%clk 0:02:03.7]} 33... Kh8 {[%clk 0:03:30.6]} 34. Qd4+ {[%clk 0:01:53.6]}
34... Kh7 {[%clk 0:03:29.5]} 35. Qe4 {[%clk 0:01:25.6]} 35... f3 {[%clk
0:03:24.2]} 36. Qb7+ {[%clk 0:01:07.1]} 36... Kh8 {[%clk 0:03:21.6]} 37. Qb2+
{[%clk 0:01:05.7]} 37... Kh7 {[%clk 0:03:05.1]} 38. Qb7+ {[%clk 0:01:03.4]}
38... Kh8 {[%clk 0:03:03.5]} 39. Qb2+ {[%clk 0:01:02.7]} 39... Kh7 {[%clk
0:02:58.6]} 40. Qb7+ {[%clk 0:01:02]} 1/2-1/2

[Event "Live Chess"]
[Site "Chess.com"]
[Date "2024.06.02"]
[Round "-"]
[White "dmitro74"]
[Black "Mikhail_Golubev"]
[Result "0-1"]
[WhiteElo "1746"]
[BlackElo "2493"]
[TimeControl "300"]
[EndTime "7:27:31 PDT"]
[Termination "Mikhail_Golubev won by resignation"]

1. d4 {[%clk 0:04:56.9]} 1... Nf6 {[%clk 0:04:54.8]} 2. c4 {[%clk 0:04:55.7]}
2... g6 {[%clk 0:04:52.8]} 3. Nc3 {[%clk 0:04:54.8]} 3... Bg7 {[%clk 0:04:51.5]}
4. e4 {[%clk 0:04:53.5]} 4... d6 {[%clk 0:04:50.1]} 5. Bd3 {[%clk 0:04:47.7]}
5... O-O {[%clk 0:04:46.6]} 6. Nge2 {[%clk 0:04:46.1]} 6... Nc6 {[%clk
0:04:43.6]} 7. a3 {[%clk 0:04:38.7]} 7... Nh5 {[%clk 0:04:37.5]} 8. d5 {[%clk
0:04:32.3]} 8... Ne5 {[%clk 0:04:35.4]} 9. Bc2 {[%clk 0:04:30.9]} 9... Nxc4
{[%clk 0:04:33.1]} 10. b3 {[%clk 0:04:25.8]} 10... Nb6 {[%clk 0:04:25.2]} 11.
Bb2 {[%clk 0:04:23.6]} 11... e6 {[%clk 0:04:12.6]} 12. O-O {[%clk 0:04:15.3]}
12... exd5 {[%clk 0:04:08.9]} 13. exd5 {[%clk 0:04:13.8]} 13... Re8 {[%clk
0:03:59.1]} 14. Rb1 {[%clk 0:04:11.3]} 14... Bd7 {[%clk 0:03:27.2]} 15. Qd2
{[%clk 0:03:55.7]} 15... Qh4 {[%clk 0:03:17.1]} 16. Ng3 {[%clk 0:03:21.4]} 16...
Nf4 {[%clk 0:03:07.3]} 17. Rfe1 {[%clk 0:03:07.5]} 17... Rxe1+ {[%clk
0:01:40.6]} 18. Rxe1 {[%clk 0:03:03.6]} 18... Nfxd5 {[%clk 0:01:34.9]} 19. Nxd5
{[%clk 0:02:53.7]} 19... Bxb2 {[%clk 0:01:32.6]} 20. Nxc7 {[%clk 0:02:46.1]}
20... Rc8 {[%clk 0:01:26.7]} 21. Qxd6 {[%clk 0:02:43.9]} 21... Qd8 {[%clk
0:01:22.9]} 22. Ne4 {[%clk 0:02:31.2]} 22... Qxc7 {[%clk 0:01:14.8]} 23. Nf6+
{[%clk 0:02:15.2]} 23... Bxf6 {[%clk 0:01:12.4]} 24. Qxf6 {[%clk 0:02:13.6]}
24... Qxc2 {[%clk 0:01:09.4]} 25. h3 {[%clk 0:02:09.5]} 25... Bc6 {[%clk
0:01:05.7]} 26. Re7 {[%clk 0:02:04.3]} 26... Rf8 {[%clk 0:01:02.4]} 27. Re3
{[%clk 0:01:55.7]} 27... Nd5 {[%clk 0:00:59.8]} 0-1

[Event "Live Chess"]
[Site "Chess.com"]
[Date "2024.06.02"]
[Round "-"]
[White "booktrunk"]
[Black "Colm_Buckley"]
[Result "0-1"]
[WhiteElo "1491"]
[BlackElo "1872"]
[TimeControl "300"]
[EndTime "7:27:40 PDT"]
[Termination "Colm_Buckley won by resignation"]

1. d4 {[%clk 0:04:54.8]} 1... e6 {[%clk 0:04:58.3]} 2. Nc3 {[%clk 0:04:46.3]}
2... Nf6 {[%clk 0:04:52.6]} 3. Bf4 {[%clk 0:04:44.4]} 3... c5 {[%clk 0:04:47.2]}
4. dxc5 {[%clk 0:04:41.3]} 4... Bxc5 {[%clk 0:04:38.8]} 5. e3 {[%clk 0:04:40]}
5... O-O {[%clk 0:04:30.3]} 6. a3 {[%clk 0:04:38.7]} 6... a5 {[%clk 0:04:23.7]}
7. Bd6 {[%clk 0:04:35.4]} 7... Bxd6 {[%clk 0:04:12]} 8. Qxd6 {[%clk 0:04:33.3]}
8... Ne8 {[%clk 0:03:58.1]} 9. Qd2 {[%clk 0:04:30.3]} 9... d5 {[%clk 0:03:57.1]}
10. Nf3 {[%clk 0:04:29]} 10... Nc6 {[%clk 0:03:54.5]} 11. Be2 {[%clk 0:04:27.4]}
11... Nd6 {[%clk 0:03:51.1]} 12. O-O {[%clk 0:04:26]} 12... Qe7 {[%clk
0:03:46.5]} 13. Rad1 {[%clk 0:04:24.4]} 13... b6 {[%clk 0:03:41.9]} 14. h3
{[%clk 0:04:16.7]} 14... Ba6 {[%clk 0:03:40.2]} 15. Bxa6 {[%clk 0:04:11.2]}
15... Rxa6 {[%clk 0:03:39]} 16. Qe2 {[%clk 0:04:10.3]} 16... Ra7 {[%clk
0:03:36.8]} 17. Nh2 {[%clk 0:04:08.9]} 17... Rc8 {[%clk 0:03:31.3]} 18. Nb5
{[%clk 0:04:07.2]} 18... Nxb5 {[%clk 0:03:26]} 19. Qxb5 {[%clk 0:04:04.6]} 19...
Qc5 {[%clk 0:03:17.7]} 20. Qxc5 {[%clk 0:04:02.7]} 20... bxc5 {[%clk 0:03:16.4]}
21. Nf3 {[%clk 0:03:58.7]} 21... Rb8 {[%clk 0:03:13.7]} 22. Rb1 {[%clk 0:03:58]}
22... Rab7 {[%clk 0:03:11.8]} 23. b3 {[%clk 0:03:56.1]} 23... a4 {[%clk
0:03:10.6]} 24. Nd2 {[%clk 0:03:50.8]} 24... axb3 {[%clk 0:03:01.5]} 25. Rxb3
{[%clk 0:03:49.3]} 25... Na5 {[%clk 0:02:46.8]} 26. Rxb7 {[%clk 0:03:47]} 26...
Rxb7 {[%clk 0:02:45.4]} 27. Rb1 {[%clk 0:03:46]} 27... Rxb1+ {[%clk 0:02:44.1]}
28. Nxb1 {[%clk 0:03:42.7]} 28... Kf8 {[%clk 0:02:43.7]} 29. Kf1 {[%clk
0:03:41.1]} 29... Ke7 {[%clk 0:02:43.3]} 30. Ke2 {[%clk 0:03:40.9]} 30... Kd6
{[%clk 0:02:42.6]} 31. Kd2 {[%clk 0:03:39.8]} 31... e5 {[%clk 0:02:39.8]} 32.
Kc3 {[%clk 0:03:37.9]} 32... d4+ {[%clk 0:02:37.3]} 33. exd4 {[%clk 0:03:36.2]}
33... exd4+ {[%clk 0:02:34.7]} 34. Kd3 {[%clk 0:03:34.7]} 34... Kd5 {[%clk
0:02:31.4]} 35. Nd2 {[%clk 0:03:33.4]} 35... c4+ {[%clk 0:02:27.5]} 36. Ke2
{[%clk 0:03:30.9]} 36... g6 {[%clk 0:02:19.7]} 37. g4 {[%clk 0:03:28.7]} 37...
f5 {[%clk 0:02:14.6]} 38. gxf5 {[%clk 0:03:26.6]} 38... gxf5 {[%clk 0:02:13.7]}
39. f3 {[%clk 0:03:24.7]} 39... Kc5 {[%clk 0:02:02.1]} 40. Nb1 {[%clk
0:03:19.6]} 40... c3 {[%clk 0:01:46.4]} 41. Kd3 {[%clk 0:03:13.9]} 41... Nc4
{[%clk 0:01:41.6]} 42. h4 {[%clk 0:03:04.6]} 42... Nb2+ {[%clk 0:01:36.6]} 43.
Ke2 {[%clk 0:03:00.6]} 43... Kd5 {[%clk 0:01:30.9]} 44. h5 {[%clk 0:02:54.3]}
44... Ke5 {[%clk 0:01:27.7]} 45. Kf2 {[%clk 0:02:53.2]} 45... d3 {[%clk
0:01:16.3]} 46. cxd3 {[%clk 0:02:47.2]} 46... c2 {[%clk 0:01:15.1]} 47. f4+
{[%clk 0:02:45.5]} 47... Kxf4 {[%clk 0:01:08.6]} 0-1

[Event "Live Chess"]
[Site "Chess.com"]
[Date "2024.06.02"]
[Round "-"]
[White "ACM42"]
[Black "PavelChernomordik"]
[Result "0-1"]
[WhiteElo "2176"]
[BlackElo "2499"]
[TimeControl "300"]
[EndTime "7:27:40 PDT"]
[Termination "PavelChernomordik won by resignation"]

1. e4 {[%clk 0:04:58.6]} 1... g6 {[%clk 0:04:58]} 2. d4 {[%clk 0:04:52.2]} 2...
Bg7 {[%clk 0:04:56.6]} 3. Nc3 {[%clk 0:04:50.4]} 3... d6 {[%clk 0:04:55.3]} 4.
Nf3 {[%clk 0:04:49.4]} 4... a6 {[%clk 0:04:54.2]} 5. Be3 {[%clk 0:04:48.3]} 5...
b5 {[%clk 0:04:52.8]} 6. a3 {[%clk 0:04:45.5]} 6... Bb7 {[%clk 0:04:50.9]} 7.
Bd3 {[%clk 0:04:44.8]} 7... Nd7 {[%clk 0:04:49.3]} 8. O-O {[%clk 0:04:43.1]}
8... c5 {[%clk 0:04:48.2]} 9. dxc5 {[%clk 0:04:39.1]} 9... Nxc5 {[%clk 0:04:45]}
10. Re1 {[%clk 0:04:36]} 10... Qc7 {[%clk 0:04:42.5]} 11. Nd5 {[%clk 0:04:31.7]}
11... Bxd5 {[%clk 0:04:40.4]} 12. exd5 {[%clk 0:04:30.5]} 12... Bxb2 {[%clk
0:04:36.7]} 13. Ra2 {[%clk 0:04:27.8]} 13... Bg7 {[%clk 0:04:34.7]} 14. c4
{[%clk 0:04:26.4]} 14... Nxd3 {[%clk 0:04:22.3]} 15. Qxd3 {[%clk 0:04:25.7]}
15... Qxc4 {[%clk 0:04:17.6]} 16. Qxc4 {[%clk 0:04:14.9]} 16... bxc4 {[%clk
0:04:16]} 17. Rc1 {[%clk 0:04:13.9]} 17... Rc8 {[%clk 0:04:12.6]} 18. Rac2
{[%clk 0:04:12.1]} 18... c3 {[%clk 0:04:10.4]} 19. Bd4 {[%clk 0:04:07.7]} 19...
Bxd4 {[%clk 0:03:56.1]} 20. Nxd4 {[%clk 0:04:06.4]} 20... Nf6 {[%clk 0:03:55.4]}
21. Rxc3 {[%clk 0:04:05.1]} 21... Rxc3 {[%clk 0:03:53.7]} 22. Rxc3 {[%clk
0:04:04.4]} 22... Kd8 {[%clk 0:03:49.4]} 23. Rc6 {[%clk 0:04:01.7]} 23... Nxd5
{[%clk 0:03:45.2]} 24. Rxa6 {[%clk 0:04:00.3]} 24... Nc7 {[%clk 0:03:41.2]} 25.
Ra7 {[%clk 0:03:54.8]} 25... Kd7 {[%clk 0:03:28.4]} 26. f4 {[%clk 0:03:53.4]}
26... Rb8 {[%clk 0:03:24.6]} 27. Kf2 {[%clk 0:03:51.8]} 27... e5 {[%clk
0:03:22.1]} 28. fxe5 {[%clk 0:03:49.8]} 28... dxe5 {[%clk 0:03:20.8]} 29. Nf3
{[%clk 0:03:49.2]} 29... f6 {[%clk 0:03:17.9]} 30. h4 {[%clk 0:03:48.2]} 30...
Rb2+ {[%clk 0:03:09.6]} 31. Kg3 {[%clk 0:03:42.3]} 31... Rb3 {[%clk 0:03:08.1]}
32. h5 {[%clk 0:03:39.4]} 32... e4 {[%clk 0:03:05.3]} 0-1

[Event "Live Chess"]
[Site "Chess.com"]
[Date "2024.06.02"]
[Round "-"]
[White "KeithArkell"]
[Black "NottheBishopSacrifice"]
[Result "1/2-1/2"]
[WhiteElo "2417"]
[BlackElo "2346"]
[TimeControl "300"]
[EndTime "7:27:47 PDT"]
[Termination "Game drawn by repetition"]

1. d4 {[%clk 0:04:57.5]} 1... d5 {[%clk 0:04:59.6]} 2. Nf3 {[%clk 0:04:56.7]}
2... Nf6 {[%clk 0:04:58.2]} 3. c4 {[%clk 0:04:56.2]} 3... c6 {[%clk 0:04:57.6]}
4. Qc2 {[%clk 0:04:53.4]} 4... dxc4 {[%clk 0:04:55.6]} 5. Qxc4 {[%clk
0:04:52.1]} 5... Bf5 {[%clk 0:04:54.3]} 6. g3 {[%clk 0:04:50.3]} 6... e6 {[%clk
0:04:53.1]} 7. Bg2 {[%clk 0:04:49.7]} 7... Nbd7 {[%clk 0:04:51.8]} 8. O-O {[%clk
0:04:48.7]} 8... Be7 {[%clk 0:04:50.5]} 9. Bg5 {[%clk 0:04:47.4]} 9... O-O
{[%clk 0:04:48.8]} 10. Nbd2 {[%clk 0:04:46.6]} 10... Ne4 {[%clk 0:04:36.5]} 11.
Bxe7 {[%clk 0:04:45]} 11... Qxe7 {[%clk 0:04:36.4]} 12. Rfd1 {[%clk 0:04:43.2]}
12... Rfd8 {[%clk 0:04:33.8]} 13. Rac1 {[%clk 0:04:39.3]} 13... Rac8 {[%clk
0:04:28.8]} 14. e3 {[%clk 0:04:38.3]} 14... h6 {[%clk 0:04:26.7]} 15. Qb3 {[%clk
0:04:36.9]} 15... Ndf6 {[%clk 0:04:21.1]} 16. Ne5 {[%clk 0:04:34.1]} 16... Nxd2
{[%clk 0:04:19.2]} 17. Rxd2 {[%clk 0:04:33.6]} 17... Be4 {[%clk 0:04:16.8]} 18.
Bxe4 {[%clk 0:04:31.9]} 18... Nxe4 {[%clk 0:04:16.7]} 19. Rdc2 {[%clk
0:04:30.5]} 19... Rd5 {[%clk 0:04:10.2]} 20. a4 {[%clk 0:04:29]} 20... Rcd8
{[%clk 0:04:08.7]} 21. Kg2 {[%clk 0:04:25.7]} 21... g6 {[%clk 0:03:47.8]} 22.
Nd3 {[%clk 0:04:24.3]} 22... h5 {[%clk 0:03:44.5]} 23. Nc5 {[%clk 0:04:23.5]}
23... Nxc5 {[%clk 0:03:42.6]} 24. Rxc5 {[%clk 0:04:23.1]} 24... Kg7 {[%clk
0:03:39.5]} 25. a5 {[%clk 0:04:20.3]} 25... a6 {[%clk 0:03:36.7]} 26. h4 {[%clk
0:04:18.5]} 26... R8d7 {[%clk 0:03:32.5]} 27. Qa3 {[%clk 0:04:17.4]} 27... e5
{[%clk 0:03:22.2]} 28. Rxd5 {[%clk 0:04:16.1]} 28... Qxa3 {[%clk 0:03:19.9]} 29.
bxa3 {[%clk 0:04:14.4]} 29... Rxd5 {[%clk 0:03:18.3]} 30. dxe5 {[%clk
0:04:11.7]} 30... Rxe5 {[%clk 0:03:16.1]} 31. Rb1 {[%clk 0:04:08.7]} 31... Rxa5
{[%clk 0:03:09.3]} 32. Rxb7 {[%clk 0:04:07.5]} 32... Rxa3 {[%clk 0:03:08.7]} 33.
Rb6 {[%clk 0:04:06.5]} 33... c5 {[%clk 0:03:06.7]} 34. Rc6 {[%clk 0:04:05.7]}
34... Ra5 {[%clk 0:03:04.8]} 35. Kf3 {[%clk 0:04:04.8]} 35... Kf8 {[%clk
0:03:03.9]} 36. Ke4 {[%clk 0:04:03.4]} 36... Ke7 {[%clk 0:03:02.9]} 37. Kd5
{[%clk 0:04:02.2]} 37... Ra2 {[%clk 0:02:58.5]} 38. f3 {[%clk 0:03:56.3]} 38...
Ra3 {[%clk 0:02:56.9]} 39. Ke4 {[%clk 0:03:52.4]} 39... Ra4+ {[%clk 0:02:49.5]}
40. Ke5 {[%clk 0:03:51.3]} 40... Ra3 {[%clk 0:02:42]} 41. Rc7+ {[%clk
0:03:48.4]} 41... Ke8 {[%clk 0:02:40]} 42. Ke4 {[%clk 0:03:42.7]} 42... Ra4+
{[%clk 0:02:35.2]} 43. Kd5 {[%clk 0:03:37.1]} 43... Ra3 {[%clk 0:02:33.2]} 44.
Ke4 {[%clk 0:03:30.4]} 44... Ra4+ {[%clk 0:02:32]} 45. Ke5 {[%clk 0:03:30]}
45... Ra3 {[%clk 0:02:31]} 46. Kf4 {[%clk 0:03:29.4]} 46... Ra4+ {[%clk
0:02:29.6]} 47. e4 {[%clk 0:03:28.6]} 47... c4 {[%clk 0:02:28.3]} 48. Ke5 {[%clk
0:03:27.2]} 48... Ra3 {[%clk 0:02:25.7]} 49. f4 {[%clk 0:03:23.1]} 49... Rxg3
{[%clk 0:02:23.9]} 50. Rxc4 {[%clk 0:03:22.2]} 50... Rb3 {[%clk 0:02:19.1]} 51.
Rc7 {[%clk 0:03:17.8]} 51... Rb6 {[%clk 0:02:17.5]} 52. Ra7 {[%clk 0:03:15.5]}
52... Re6+ {[%clk 0:02:16.1]} 53. Kd5 {[%clk 0:03:14.7]} 53... Kf8 {[%clk
0:02:15.3]} 54. f5 {[%clk 0:03:07.2]} 54... gxf5 {[%clk 0:02:13.6]} 55. exf5
{[%clk 0:03:06.2]} 55... Rb6 {[%clk 0:02:11.4]} 56. Ke5 {[%clk 0:03:05.4]} 56...
Kg7 {[%clk 0:02:09.6]} 57. Ra8 {[%clk 0:03:01.7]} 57... Rb5+ {[%clk 0:01:50.3]}
58. Kf4 {[%clk 0:03:00.4]} 58... f6 {[%clk 0:01:47.8]} 59. Ra7+ {[%clk
0:02:58.5]} 59... Kh6 {[%clk 0:01:46.2]} 60. Rxa6 {[%clk 0:02:57.7]} 60... Kg7
{[%clk 0:01:45.2]} 61. Ra7+ {[%clk 0:02:55.9]} 61... Kh6 {[%clk 0:01:43.8]} 62.
Rf7 {[%clk 0:02:54.3]} 62... Rb4+ {[%clk 0:01:42.8]} 63. Ke3 {[%clk 0:02:53.5]}
63... Rb3+ {[%clk 0:01:41.9]} 64. Kd4 {[%clk 0:02:52.7]} 64... Rb4+ {[%clk
0:01:39.9]} 65. Kd5 {[%clk 0:02:52]} 65... Rxh4 {[%clk 0:01:38.8]} 66. Ke6
{[%clk 0:02:50.1]} 66... Ra4 {[%clk 0:01:36.1]} 67. Kxf6 {[%clk 0:02:49.4]}
67... Ra6+ {[%clk 0:01:34.1]} 68. Ke7 {[%clk 0:02:44.6]} 68... Ra7+ {[%clk
0:01:33.1]} 69. Kf8 {[%clk 0:02:43.1]} 69... Ra8+ {[%clk 0:01:32.1]} 70. Ke7
{[%clk 0:02:42.6]} 70... Ra7+ {[%clk 0:01:31.5]} 71. Ke6 {[%clk 0:02:42.1]}
71... Ra6+ {[%clk 0:01:30.6]} 72. Ke5 {[%clk 0:02:41.7]} 72... Ra5+ {[%clk
0:01:29.9]} 73. Ke4 {[%clk 0:02:41.2]} 73... Ra4+ {[%clk 0:01:29.2]} 74. Ke5
{[%clk 0:02:38.8]} 74... Ra5+ {[%clk 0:01:28.3]} 75. Ke4 {[%clk 0:02:38.4]}
75... Ra4+ {[%clk 0:01:27.5]} 76. Ke5 {[%clk 0:02:38]} 76... Ra5+ {[%clk
0:01:26.7]} 1/2-1/2